[Event "Titled Tuesday Blitz January 10 Early 2023"]
[White "Matveeva, Olga"]
[Black "Mayank Chakraborty"]
[WhiteFideId "24107018"]
[BlackFideId "25659766"]
[WhiteElo "2128"]
[BlackElo "2025"]
[Result "0-1"]
[Round "05"]
[TimeControl "180+2"]
[Date "2023.01.10"]
[WhiteClock "0:00:03"]
[BlackClock "0:01:02"]

1. d4 {[%clk 0:03:00]}  Nf6 {[%clk 0:02:59]} 2. c4 {[%clk 0:02:59]}  e6 {[%clk 0:03:00]} 3. g3 {[%clk 0:02:58]}  d5 {[%clk 0:02:59]} 4. Nf3 {[%clk 0:02:58]}  dxc4 {[%clk 0:02:59]} 5. Bg2 {[%clk 0:02:58]}  a6 {[%clk 0:02:59]} 6. Ne5 {[%clk 0:02:52]}  Bb4+ {[%clk 0:02:50]} 7. Nc3 {[%clk 0:02:50]}  O-O {[%clk 0:02:50]} 8. Nxc4 {[%clk 0:02:49]}  Nd5 {[%clk 0:02:45]} 9. Bd2 {[%clk 0:02:47]}  Nc6 {[%clk 0:02:45]} 10. e3 {[%clk 0:02:42]}  b5 {[%clk 0:02:42]} 11. Ne5 {[%clk 0:02:38]}  Nxe5 {[%clk 0:02:42]} 12. dxe5 {[%clk 0:02:39]}  Bb7 {[%clk 0:02:40]} 13. O-O {[%clk 0:02:30]}  Bxc3 {[%clk 0:02:33]} 14. Bxc3 {[%clk 0:02:23]}  Nxc3 {[%clk 0:02:33]} 15. bxc3 {[%clk 0:02:13]}  Bxg2 {[%clk 0:02:30]} 16. Kxg2 {[%clk 0:02:12]}  Qe8 {[%clk 0:02:29]} 17. Qb3 {[%clk 0:02:01]}  Qc6+ {[%clk 0:02:29]} 18. Kg1 {[%clk 0:02:01]}  Rfd8 {[%clk 0:02:26]} 19. Rfd1 {[%clk 0:01:58]}  h5 {[%clk 0:02:22]} 20. Qb4 {[%clk 0:01:50]}  Qf3 {[%clk 0:02:18]} 21. Rd4 {[%clk 0:01:20]}  Rxd4 {[%clk 0:02:07]} 22. cxd4 {[%clk 0:01:14]}  h4 {[%clk 0:02:06]} 23. Qe1 {[%clk 0:01:06]}  a5 {[%clk 0:01:59]} 24. Qd1 {[%clk 0:01:04]}  Qe4 {[%clk 0:01:49]} 25. gxh4 {[%clk 0:00:59]}  Qxh4 {[%clk 0:01:44]} 26. Qf3 {[%clk 0:00:59]}  Rb8 {[%clk 0:01:44]} 27. Rc1 {[%clk 0:00:56]}  Qg5+ {[%clk 0:01:40]} 28. Kh1 {[%clk 0:00:54]}  Qe7 {[%clk 0:01:40]} 29. Qc6 {[%clk 0:00:43]}  b4 {[%clk 0:01:34]} 30. Qxc7 {[%clk 0:00:19]}  Qe8 {[%clk 0:01:25]} 31. Qxa5 {[%clk 0:00:16]}  Qe7 {[%clk 0:01:12]} 32. Qc5 {[%clk 0:00:14]}  Qh4 {[%clk 0:01:09]} 33. Qc2 {[%clk 0:00:12]}  g6 {[%clk 0:01:02]} 34. Qe2 {[%clk 0:00:11]}  Ra8 {[%clk 0:01:02]} 35. Rb1 {[%clk 0:00:07]}  Qe4+ {[%clk 0:01:00]} 36. Kg1 {[%clk 0:00:02]}  Qxb1+ {[%clk 0:01:01]} 37. Kg2 {[%clk 0:00:03]}  Qxa2 {[%clk 0:01:02]} 0-1


[Site "https://www.chess.com"]

[Event "Titled Tuesday Blitz January 10 Early 2023"]
[White "Becerra, Juan David"]
[Black "Fathy, Elameir"]
[WhiteFideId "4404998"]
[BlackFideId "10600396"]
[WhiteElo "2382"]
[BlackElo "2300"]
[Result "0-1"]
[Round "05"]
[TimeControl "180+2"]
[Date "2023.01.10"]
[WhiteClock "0:00:05"]
[BlackClock "0:01:02"]

1. e4 {[%clk 0:03:00]}  c5 {[%clk 0:02:53]} 2. Nf3 {[%clk 0:03:00]}  d6 {[%clk 0:02:53]} 3. d4 {[%clk 0:03:00]}  cxd4 {[%clk 0:02:53]} 4. Nxd4 {[%clk 0:02:59]}  Nf6 {[%clk 0:02:53]} 5. Nc3 {[%clk 0:03:00]}  a6 {[%clk 0:02:46]} 6. a4 {[%clk 0:02:58]}  e5 {[%clk 0:02:44]} 7. Nf3 {[%clk 0:02:53]}  Be7 {[%clk 0:02:43]} 8. Bc4 {[%clk 0:02:52]}  O-O {[%clk 0:02:41]} 9. Bg5 {[%clk 0:02:52]}  Be6 {[%clk 0:02:33]} 10. Bxf6 {[%clk 0:02:47]}  Bxf6 {[%clk 0:02:34]} 11. Nd5 {[%clk 0:02:46]}  Be7 {[%clk 0:02:29]} 12. O-O {[%clk 0:02:37]}  Nd7 {[%clk 0:02:27]} 13. Qd2 {[%clk 0:02:25]}  Nb6 {[%clk 0:02:21]} 14. Nxb6 {[%clk 0:02:12]}  Qxb6 {[%clk 0:02:19]} 15. Bxe6 {[%clk 0:02:07]}  fxe6 {[%clk 0:02:19]} 16. b3 {[%clk 0:02:04]}  Rad8 {[%clk 0:02:11]} 17. Ng5 {[%clk 0:01:57]}  d5 {[%clk 0:01:49]} 18. a5 {[%clk 0:01:41]}  Qc6 {[%clk 0:01:38]} 19. exd5 {[%clk 0:01:12]}  exd5 {[%clk 0:01:38]} 20. Qe3 {[%clk 0:01:07]}  e4 {[%clk 0:01:21]} 21. Rad1 {[%clk 0:00:08]}  h6 {[%clk 0:01:02]} 22. Nh3 {[%clk 0:00:05]}  Qxc2 {[%clk 0:01:02]} 0-1


[Site "https://www.chess.com"]

[Event "Titled Tuesday Blitz January 10 Early 2023"]
[White "Lehtosaari, Mauri"]
[Black "Petrova, Irina"]
[WhiteFideId "501999"]
[BlackFideId "14124122"]
[WhiteElo "2176"]
[BlackElo "2108"]
[Result "1/2-1/2"]
[Round "05"]
[TimeControl "180+2"]
[Date "2023.01.10"]
[WhiteClock "0:00:06"]
[BlackClock "0:00:08"]

1. d4 {[%clk 0:03:00]}  d6 {[%clk 0:03:00]} 2. Nf3 {[%clk 0:03:01]}  g6 {[%clk 0:03:00]} 3. Bg5 {[%clk 0:03:01]}  Bg7 {[%clk 0:03:00]} 4. c3 {[%clk 0:03:01]}  Nd7 {[%clk 0:03:00]} 5. Nbd2 {[%clk 0:02:59]}  Ngf6 {[%clk 0:03:00]} 6. e3 {[%clk 0:02:58]}  O-O {[%clk 0:03:00]} 7. Bc4 {[%clk 0:02:58]}  c5 {[%clk 0:02:55]} 8. O-O {[%clk 0:02:58]}  b6 {[%clk 0:02:54]} 9. a4 {[%clk 0:02:58]}  Bb7 {[%clk 0:02:54]} 10. Ba2 {[%clk 0:02:56]}  a6 {[%clk 0:02:49]} 11. Re1 {[%clk 0:02:55]}  Ne4 {[%clk 0:02:42]} 12. Nxe4 {[%clk 0:02:54]}  Bxe4 {[%clk 0:02:43]} 13. Nd2 {[%clk 0:02:51]}  Bb7 {[%clk 0:02:40]} 14. Qg4 {[%clk 0:02:39]}  Nf6 {[%clk 0:02:37]} 15. Qh4 {[%clk 0:02:38]}  Rc8 {[%clk 0:02:28]} 16. Bh6 {[%clk 0:02:31]}  Rc7 {[%clk 0:02:27]} 17. Bxg7 {[%clk 0:02:29]}  Kxg7 {[%clk 0:02:27]} 18. f3 {[%clk 0:02:26]}  Qa8 {[%clk 0:02:17]} 19. Qf2 {[%clk 0:02:11]}  e5 {[%clk 0:02:09]} 20. dxe5 {[%clk 0:02:06]}  dxe5 {[%clk 0:02:10]} 21. e4 {[%clk 0:02:03]}  Re8 {[%clk 0:01:58]} 22. Nc4 {[%clk 0:02:02]}  Qa7 {[%clk 0:01:43]} 23. Red1 {[%clk 0:01:56]}  Bc6 {[%clk 0:01:39]} 24. Bb3 {[%clk 0:01:47]}  Nd7 {[%clk 0:01:29]} 25. Ne3 {[%clk 0:01:43]}  Qb7 {[%clk 0:01:24]} 26. Bd5 {[%clk 0:01:31]}  Nf6 {[%clk 0:01:18]} 27. Bxc6 {[%clk 0:01:24]}  Qxc6 {[%clk 0:01:19]} 28. Nd5 {[%clk 0:01:09]}  Nxd5 {[%clk 0:01:18]} 29. Rxd5 {[%clk 0:01:06]}  b5 {[%clk 0:01:13]} 30. axb5 {[%clk 0:01:04]}  axb5 {[%clk 0:01:14]} 31. Rad1 {[%clk 0:01:04]}  Ree7 {[%clk 0:01:10]} 32. Qg3 {[%clk 0:01:00]}  Qf6 {[%clk 0:01:02]} 33. h4 {[%clk 0:00:50]}  h5 {[%clk 0:01:01]} 34. Kh2 {[%clk 0:00:49]}  b4 {[%clk 0:00:52]} 35. c4 {[%clk 0:00:48]}  Qa6 {[%clk 0:00:47]} 36. b3 {[%clk 0:00:43]}  f6 {[%clk 0:00:47]} 37. Qf2 {[%clk 0:00:36]}  Qa7 {[%clk 0:00:45]} 38. Qe3 {[%clk 0:00:36]}  Rf7 {[%clk 0:00:34]} 39. Rd6 {[%clk 0:00:34]}  Qa3 {[%clk 0:00:30]} 40. Re6 {[%clk 0:00:30]}  Qb2 {[%clk 0:00:27]} 41. Rdd6 {[%clk 0:00:28]}  Ra7 {[%clk 0:00:24]} 42. Rd2 {[%clk 0:00:23]}  Qc1 {[%clk 0:00:20]} 43. Red6 {[%clk 0:00:17]}  Ra1 {[%clk 0:00:19]} 44. Kg3 {[%clk 0:00:17]}  Rb1 {[%clk 0:00:15]} 45. R2d3 {[%clk 0:00:15]}  Qc2 {[%clk 0:00:13]} 46. R6d5 {[%clk 0:00:11]}  Rb2 {[%clk 0:00:12]} 47. Qg1 {[%clk 0:00:11]}  Rxb3 {[%clk 0:00:11]} 48. Rxb3 {[%clk 0:00:11]}  Qxb3 {[%clk 0:00:12]} 49. Qxc5 {[%clk 0:00:12]}  Qc3 {[%clk 0:00:10]} 50. Rd8 {[%clk 0:00:10]}  Qe1+ {[%clk 0:00:09]} 51. Kh3 {[%clk 0:00:09]}  Qh1+ {[%clk 0:00:09]} 52. Kg3 {[%clk 0:00:10]}  Qe1+ {[%clk 0:00:09]} 53. Kh3 {[%clk 0:00:06]}  Qh1+ {[%clk 0:00:08]} 54. Kg3 {[%clk 0:00:06]}  Qe1+ {[%clk 0:00:08]} 1/2-1/2


[Site "https://www.chess.com"]

[Event "Titled Tuesday Blitz January 10 Early 2023"]
[White "Mika, Tomasz"]
[Black "Levitan, Caleb Levi"]
[WhiteFideId "1132970"]
[BlackFideId "14332620"]
[WhiteElo "2169"]
[BlackElo "2129"]
[Result "0-1"]
[Round "05"]
[TimeControl "180+2"]
[Date "2023.01.10"]
[WhiteClock "0:01:10"]
[BlackClock "0:00:17"]

1. Nf3 {[%clk 0:03:00]}  Nf6 {[%clk 0:02:56]} 2. c4 {[%clk 0:03:00]}  e6 {[%clk 0:02:56]} 3. b3 {[%clk 0:02:57]}  d5 {[%clk 0:02:53]} 4. g3 {[%clk 0:02:57]}  c5 {[%clk 0:02:53]} 5. Bg2 {[%clk 0:02:56]}  Nc6 {[%clk 0:02:53]} 6. O-O {[%clk 0:02:56]}  Be7 {[%clk 0:02:54]} 7. Bb2 {[%clk 0:02:56]}  O-O {[%clk 0:02:53]} 8. cxd5 {[%clk 0:02:56]}  exd5 {[%clk 0:02:53]} 9. d4 {[%clk 0:02:57]}  Be6 {[%clk 0:02:42]} 10. Nc3 {[%clk 0:02:56]}  Qd7 {[%clk 0:02:38]} 11. Ne5 {[%clk 0:02:49]}  Qc7 {[%clk 0:02:29]} 12. Nxc6 {[%clk 0:02:46]}  bxc6 {[%clk 0:02:29]} 13. dxc5 {[%clk 0:02:42]}  Bxc5 {[%clk 0:02:29]} 14. Rc1 {[%clk 0:02:43]}  Bb6 {[%clk 0:02:01]} 15. Qc2 {[%clk 0:02:30]}  Rac8 {[%clk 0:01:50]} 16. Rfd1 {[%clk 0:02:22]}  Bxf2+ {[%clk 0:01:18]} 17. Kxf2 {[%clk 0:02:21]}  Qb6+ {[%clk 0:01:18]} 18. Kf1 {[%clk 0:02:03]}  Ng4 {[%clk 0:01:17]} 19. Ke1 {[%clk 0:01:38]}  Qf2+ {[%clk 0:01:05]} 20. Kd2 {[%clk 0:01:35]}  Bf5 {[%clk 0:00:26]} 21. Ne4 {[%clk 0:01:25]}  dxe4 {[%clk 0:00:25]} 22. Bxe4 {[%clk 0:01:12]}  Rfd8+ {[%clk 0:00:18]} 23. Kc3 {[%clk 0:01:10]}  Qc5# {[%clk 0:00:17]} 0-1


[Site "https://www.chess.com"]

[Event "Titled Tuesday Blitz January 10 Early 2023"]
[White "Vaglio Munoz, Jaime"]
[Black "Ljukin, Sergei"]
[WhiteFideId "6500145"]
[BlackFideId "14102200"]
[WhiteElo "2174"]
[BlackElo "2362"]
[Result "0-1"]
[Round "05"]
[TimeControl "180+2"]
[Date "2023.01.10"]
[WhiteClock "0:01:09"]
[BlackClock "0:00:17"]

1. d4 {[%clk 0:03:00]}  d5 {[%clk 0:02:54]} 2. c4 {[%clk 0:02:59]}  c6 {[%clk 0:02:54]} 3. Nc3 {[%clk 0:02:58]}  Nf6 {[%clk 0:02:54]} 4. Bg5 {[%clk 0:02:57]}  dxc4 {[%clk 0:02:54]} 5. a4 {[%clk 0:02:55]}  Qa5 {[%clk 0:02:50]} 6. Bxf6 {[%clk 0:02:54]}  exf6 {[%clk 0:02:50]} 7. e3 {[%clk 0:02:48]}  Bb4 {[%clk 0:02:50]} 8. Qc2 {[%clk 0:02:47]}  b5 {[%clk 0:02:49]} 9. Ne2 {[%clk 0:02:39]}  O-O {[%clk 0:02:47]} 10. g3 {[%clk 0:02:39]}  Bb7 {[%clk 0:02:45]} 11. Bg2 {[%clk 0:02:39]}  a6 {[%clk 0:02:43]} 12. O-O {[%clk 0:02:38]}  Qb6 {[%clk 0:02:43]} 13. Ne4 {[%clk 0:02:36]}  Nd7 {[%clk 0:02:39]} 14. g4 {[%clk 0:02:36]}  h6 {[%clk 0:02:38]} 15. N4g3 {[%clk 0:02:33]}  c5 {[%clk 0:02:20]} 16. d5 {[%clk 0:02:31]}  Ne5 {[%clk 0:02:20]} 17. h3 {[%clk 0:02:28]}  Rad8 {[%clk 0:02:04]} 18. e4 {[%clk 0:02:27]}  Rfe8 {[%clk 0:02:03]} 19. Nf5 {[%clk 0:02:24]}  Bc8 {[%clk 0:01:58]} 20. Neg3 {[%clk 0:02:23]}  Nd3 {[%clk 0:01:51]} 21. axb5 {[%clk 0:02:22]}  axb5 {[%clk 0:01:50]} 22. Nh5 {[%clk 0:02:17]}  Bxf5 {[%clk 0:01:42]} 23. gxf5 {[%clk 0:02:15]}  Qd6 {[%clk 0:01:34]} 24. b3 {[%clk 0:02:13]}  Ne5 {[%clk 0:01:30]} 25. bxc4 {[%clk 0:02:10]}  Nxc4 {[%clk 0:01:30]} 26. Ra7 {[%clk 0:02:09]}  Ne5 {[%clk 0:01:08]} 27. f4 {[%clk 0:02:08]}  Nd7 {[%clk 0:01:04]} 28. Qe2 {[%clk 0:02:03]}  Kh8 {[%clk 0:01:00]} 29. Qxb5 {[%clk 0:02:01]}  c4 {[%clk 0:00:57]} 30. Qxc4 {[%clk 0:01:54]}  Qc5+ {[%clk 0:00:55]} 31. Qxc5 {[%clk 0:01:46]}  Bxc5+ {[%clk 0:00:55]} 32. Kh2 {[%clk 0:01:47]}  Bxa7 {[%clk 0:00:55]} 33. Rf3 {[%clk 0:01:42]}  Bc5 {[%clk 0:00:37]} 34. Rg3 {[%clk 0:01:38]}  Bf8 {[%clk 0:00:37]} 35. Bf1 {[%clk 0:01:38]}  Rxe4 {[%clk 0:00:36]} 36. Rb3 {[%clk 0:01:35]}  Nc5 {[%clk 0:00:33]} 37. Rb6 {[%clk 0:01:31]}  Rd4 {[%clk 0:00:31]} 38. Bg2 {[%clk 0:01:30]}  Rd2 {[%clk 0:00:30]} 39. Kg3 {[%clk 0:01:30]}  Ra8 {[%clk 0:00:27]} 40. Rc6 {[%clk 0:01:28]}  Ra3+ {[%clk 0:00:26]} 41. Bf3 {[%clk 0:01:26]}  Rdd3 {[%clk 0:00:23]} 42. d6 {[%clk 0:01:21]}  Rxf3+ {[%clk 0:00:22]} 43. Kg2 {[%clk 0:01:20]}  Ne4 {[%clk 0:00:21]} 44. Rc2 {[%clk 0:01:16]}  Nxd6 {[%clk 0:00:19]} 45. h4 {[%clk 0:01:14]}  Ne4 {[%clk 0:00:19]} 46. Kh2 {[%clk 0:01:14]}  Rh3+ {[%clk 0:00:19]} 47. Kg2 {[%clk 0:01:14]}  Rxh4 {[%clk 0:00:18]} 48. Nxf6 {[%clk 0:01:13]}  gxf6 {[%clk 0:00:17]} 49. Kg1 {[%clk 0:01:12]}  Rg3+ {[%clk 0:00:15]} 50. Kf1 {[%clk 0:01:10]}  Rh1+ {[%clk 0:00:16]} 51. Ke2 {[%clk 0:01:10]}  Rh2+ {[%clk 0:00:17]} 52. Kd1 {[%clk 0:01:09]}  Rg1# {[%clk 0:00:17]} 0-1


[Site "https://www.chess.com"]

[Event "Titled Tuesday Blitz January 10 Early 2023"]
[White "Melaugh, Shane"]
[Black "Martinez, Shawn"]
[WhiteFideId "2509580"]
[BlackFideId "2039770"]
[WhiteElo "2115"]
[BlackElo "1881"]
[Result "1/2-1/2"]
[Round "05"]
[TimeControl "180+2"]
[Date "2023.01.10"]
[WhiteClock "0:00:07"]
[BlackClock "0:01:03"]

1. c4 {[%clk 0:03:00]}  e5 {[%clk 0:02:36]} 2. Nc3 {[%clk 0:03:00]}  Nc6 {[%clk 0:02:36]} 3. g3 {[%clk 0:02:58]}  g6 {[%clk 0:02:35]} 4. Bg2 {[%clk 0:02:58]}  Bg7 {[%clk 0:02:35]} 5. e3 {[%clk 0:02:57]}  Nge7 {[%clk 0:02:36]} 6. b3 {[%clk 0:02:56]}  d6 {[%clk 0:02:35]} 7. Bb2 {[%clk 0:02:55]}  O-O {[%clk 0:02:36]} 8. Nf3 {[%clk 0:02:55]}  Bf5 {[%clk 0:02:36]} 9. d4 {[%clk 0:02:31]}  exd4 {[%clk 0:02:29]} 10. exd4 {[%clk 0:02:32]}  Qc8 {[%clk 0:02:28]} 11. O-O {[%clk 0:02:13]}  Bh3 {[%clk 0:02:26]} 12. Qd2 {[%clk 0:02:02]}  Bxg2 {[%clk 0:02:24]} 13. Kxg2 {[%clk 0:02:03]}  Nf5 {[%clk 0:02:23]} 14. Nd5 {[%clk 0:01:57]}  Re8 {[%clk 0:02:21]} 15. Rfe1 {[%clk 0:01:56]}  Qd7 {[%clk 0:02:21]} 16. a3 {[%clk 0:01:52]}  h5 {[%clk 0:02:14]} 17. h4 {[%clk 0:01:47]}  Nce7 {[%clk 0:02:04]} 18. Nxe7+ {[%clk 0:01:33]}  Rxe7 {[%clk 0:02:02]} 19. Rxe7 {[%clk 0:01:33]}  Qxe7 {[%clk 0:01:59]} 20. Re1 {[%clk 0:01:33]}  Qd7 {[%clk 0:02:00]} 21. d5 {[%clk 0:01:19]}  Re8 {[%clk 0:01:58]} 22. Bxg7 {[%clk 0:01:18]}  Nxg7 {[%clk 0:01:55]} 23. Ng5 {[%clk 0:01:15]}  Rxe1 {[%clk 0:01:52]} 24. Qxe1 {[%clk 0:01:16]}  Nf5 {[%clk 0:01:52]} 25. Ne4 {[%clk 0:00:43]}  Qe7 {[%clk 0:01:51]} 26. f4 {[%clk 0:00:43]}  Nd4 {[%clk 0:01:36]} 27. Qe3 {[%clk 0:00:29]}  Nxb3 {[%clk 0:01:31]} 28. Nf6+ {[%clk 0:00:16]}  Qxf6 {[%clk 0:01:28]} 29. Qxb3 {[%clk 0:00:17]}  b6 {[%clk 0:01:26]} 30. Qa4 {[%clk 0:00:17]}  a5 {[%clk 0:01:22]} 31. Qc6 {[%clk 0:00:17]}  Qb2+ {[%clk 0:01:18]} 32. Kh3 {[%clk 0:00:17]}  Qc1 {[%clk 0:01:13]} 33. Kg2 {[%clk 0:00:14]}  Qb2+ {[%clk 0:01:13]} 34. Kh3 {[%clk 0:00:14]}  Qxa3 {[%clk 0:01:12]} 35. Qxc7 {[%clk 0:00:15]}  Qc5 {[%clk 0:01:13]} 36. Qd8+ {[%clk 0:00:09]}  Kg7 {[%clk 0:01:13]} 37. f5 {[%clk 0:00:08]}  gxf5 {[%clk 0:01:05]} 38. Qg5+ {[%clk 0:00:07]}  Kf8 {[%clk 0:01:05]} 39. Qd8+ {[%clk 0:00:07]}  Kg7 {[%clk 0:01:04]} 40. Qg5+ {[%clk 0:00:08]}  Kf8 {[%clk 0:01:03]} 41. Qd8+ {[%clk 0:00:07]}  Kg7 {[%clk 0:01:03]} 1/2-1/2


[Site "https://www.chess.com"]

[Event "Titled Tuesday Blitz January 10 Early 2023"]
[White "Real_taiatai"]
[Black "Guliev, Logman"]
[BlackFideId "13400061"]
[WhiteElo "2318"]
[BlackElo "2250"]
[Result "1-0"]
[Round "05"]
[TimeControl "180+2"]
[Date "2023.01.10"]
[WhiteClock "0:00:22"]
[BlackClock "0:00:36"]

1. Nf3 {[%clk 0:02:57]}  d5 {[%clk 0:02:59]} 2. c4 {[%clk 0:02:53]}  e6 {[%clk 0:02:58]} 3. g3 {[%clk 0:02:54]}  Nf6 {[%clk 0:02:58]} 4. Bg2 {[%clk 0:02:54]}  Be7 {[%clk 0:02:58]} 5. d4 {[%clk 0:02:53]}  O-O {[%clk 0:02:58]} 6. O-O {[%clk 0:02:54]}  c5 {[%clk 0:02:57]} 7. Nc3 {[%clk 0:02:52]}  h6 {[%clk 0:02:55]} 8. dxc5 {[%clk 0:02:37]}  Bxc5 {[%clk 0:02:52]} 9. cxd5 {[%clk 0:02:36]}  Nxd5 {[%clk 0:02:52]} 10. Nxd5 {[%clk 0:02:36]}  exd5 {[%clk 0:02:52]} 11. Bf4 {[%clk 0:02:35]}  Nc6 {[%clk 0:02:51]} 12. Ne5 {[%clk 0:02:34]}  Nxe5 {[%clk 0:02:48]} 13. Bxe5 {[%clk 0:02:34]}  Be6 {[%clk 0:02:42]} 14. Rc1 {[%clk 0:02:33]}  Bb6 {[%clk 0:02:41]} 15. Qa4 {[%clk 0:02:21]}  Qg5 {[%clk 0:02:34]} 16. Bc7 {[%clk 0:02:11]}  Rac8 {[%clk 0:02:30]} 17. Bf4 {[%clk 0:02:04]}  Qf6 {[%clk 0:02:30]} 18. Qa3 {[%clk 0:01:45]}  Rxc1 {[%clk 0:02:13]} 19. Bxc1 {[%clk 0:01:37]}  Rc8 {[%clk 0:02:13]} 20. e3 {[%clk 0:01:29]}  Qf5 {[%clk 0:02:02]} 21. Bd2 {[%clk 0:01:26]}  Rc2 {[%clk 0:01:56]} 22. Bc3 {[%clk 0:01:08]}  d4 {[%clk 0:01:19]} 23. exd4 {[%clk 0:01:04]}  Bc4 {[%clk 0:01:16]} 24. Qa4 {[%clk 0:01:00]}  Bb5 {[%clk 0:01:09]} 25. Bh3 {[%clk 0:00:40]}  Qh5 {[%clk 0:00:58]} 26. Qxc2 {[%clk 0:00:34]}  Qxh3 {[%clk 0:00:56]} 27. Re1 {[%clk 0:00:28]}  g6 {[%clk 0:00:40]} 28. d5 {[%clk 0:00:23]}  Bd7 {[%clk 0:00:36]} 29. Qe4 {[%clk 0:00:22]} 1-0


[Site "https://www.chess.com"]

[Event "Titled Tuesday Blitz January 10 Early 2023"]
[White "Rosenberg, Evan S"]
[Black "Erzhanov, Arman"]
[WhiteFideId "2019299"]
[BlackFideId "4138821"]
[WhiteElo "1956"]
[BlackElo "2228"]
[Result "0-1"]
[Round "05"]
[TimeControl "180+2"]
[Date "2023.01.10"]
[WhiteClock "0:00:14"]
[BlackClock "0:00:14"]

1. d4 {[%clk 0:02:58]}  d6 {[%clk 0:02:59]} 2. e4 {[%clk 0:02:53]}  Nf6 {[%clk 0:02:58]} 3. Nc3 {[%clk 0:02:52]}  e5 {[%clk 0:02:59]} 4. dxe5 {[%clk 0:02:52]}  dxe5 {[%clk 0:02:59]} 5. Qxd8+ {[%clk 0:02:52]}  Kxd8 {[%clk 0:03:00]} 6. Bc4 {[%clk 0:02:52]}  Bb4 {[%clk 0:02:59]} 7. f3 {[%clk 0:02:36]}  Ke7 {[%clk 0:02:58]} 8. Ne2 {[%clk 0:02:35]}  c6 {[%clk 0:02:58]} 9. Bd2 {[%clk 0:02:31]}  b5 {[%clk 0:02:55]} 10. Bb3 {[%clk 0:02:19]}  Bd6 {[%clk 0:02:35]} 11. O-O-O {[%clk 0:02:18]}  Nbd7 {[%clk 0:02:34]} 12. g4 {[%clk 0:02:07]}  Nc5 {[%clk 0:02:33]} 13. Ng3 {[%clk 0:02:04]}  a5 {[%clk 0:02:26]} 14. g5 {[%clk 0:02:01]}  Ne8 {[%clk 0:02:21]} 15. a4 {[%clk 0:01:38]}  b4 {[%clk 0:02:16]} 16. Nb1 {[%clk 0:01:30]}  g6 {[%clk 0:02:12]} 17. Be3 {[%clk 0:01:29]}  Ba6 {[%clk 0:01:18]} 18. Nd2 {[%clk 0:01:20]}  Nc7 {[%clk 0:01:07]} 19. Bc4 {[%clk 0:01:08]}  N7e6 {[%clk 0:00:45]} 20. Bxa6 {[%clk 0:01:06]}  Rxa6 {[%clk 0:00:46]} 21. Nc4 {[%clk 0:01:03]}  Bc7 {[%clk 0:00:47]} 22. b3 {[%clk 0:01:01]}  Raa8 {[%clk 0:00:47]} 23. h4 {[%clk 0:00:58]}  Rad8 {[%clk 0:00:36]} 24. h5 {[%clk 0:00:57]}  Rxd1+ {[%clk 0:00:36]} 25. Rxd1 {[%clk 0:00:56]}  Rg8 {[%clk 0:00:33]} 26. hxg6 {[%clk 0:00:53]}  hxg6 {[%clk 0:00:30]} 27. Rh1 {[%clk 0:00:53]}  Nd4 {[%clk 0:00:25]} 28. Rh7 {[%clk 0:00:44]}  Nce6 {[%clk 0:00:19]} 29. Nd2 {[%clk 0:00:37]}  Rd8 {[%clk 0:00:16]} 30. Kb2 {[%clk 0:00:30]}  Bd6 {[%clk 0:00:15]} 31. c3 {[%clk 0:00:27]}  bxc3+ {[%clk 0:00:15]} 32. Kxc3 {[%clk 0:00:28]}  Bb4+ {[%clk 0:00:15]} 33. Kb2 {[%clk 0:00:27]}  Bxd2 {[%clk 0:00:15]} 34. Bxd2 {[%clk 0:00:27]}  Nxb3 {[%clk 0:00:16]} 35. Bc3 {[%clk 0:00:22]}  Ned4 {[%clk 0:00:16]} 36. Nf1 {[%clk 0:00:18]}  Rb8 {[%clk 0:00:15]} 37. Ka3 {[%clk 0:00:15]}  Nc1 {[%clk 0:00:14]} 38. Bxd4 {[%clk 0:00:14]}  Rb3# {[%clk 0:00:14]} 0-1


[Site "https://www.chess.com"]

[Event "Titled Tuesday Blitz January 10 Early 2023"]
[White "Papayan, Oleg"]
[Black "Campbell, Charles"]
[WhiteFideId "4193911"]
[BlackFideId "8500436"]
[WhiteElo "2253"]
[BlackElo "2179"]
[Result "0-1"]
[Round "05"]
[TimeControl "180+2"]
[Date "2023.01.10"]
[WhiteClock "0:00:03"]
[BlackClock "0:01:11"]

1. d4 {[%clk 0:03:00]}  Nf6 {[%clk 0:02:59]} 2. Nf3 {[%clk 0:03:00]}  e6 {[%clk 0:02:59]} 3. Bf4 {[%clk 0:02:59]}  b6 {[%clk 0:02:59]} 4. h3 {[%clk 0:02:56]}  Bb7 {[%clk 0:03:00]} 5. e3 {[%clk 0:02:57]}  d5 {[%clk 0:03:00]} 6. Bd3 {[%clk 0:02:56]}  Bd6 {[%clk 0:03:00]} 7. O-O {[%clk 0:02:53]}  O-O {[%clk 0:03:00]} 8. Nbd2 {[%clk 0:02:53]}  Nbd7 {[%clk 0:03:00]} 9. c3 {[%clk 0:02:51]}  Ne4 {[%clk 0:02:58]} 10. Qc2 {[%clk 0:02:47]}  f5 {[%clk 0:02:57]} 11. Ne5 {[%clk 0:02:42]}  Nxe5 {[%clk 0:02:57]} 12. dxe5 {[%clk 0:02:35]}  Be7 {[%clk 0:02:56]} 13. f3 {[%clk 0:02:35]}  Nxd2 {[%clk 0:02:51]} 14. Qxd2 {[%clk 0:02:35]}  c5 {[%clk 0:02:51]} 15. Rad1 {[%clk 0:02:30]}  Bg5 {[%clk 0:02:39]} 16. Bxg5 {[%clk 0:01:44]}  Qxg5 {[%clk 0:02:36]} 17. e4 {[%clk 0:01:45]}  Qxd2 {[%clk 0:02:33]} 18. Rxd2 {[%clk 0:01:46]}  fxe4 {[%clk 0:02:32]} 19. fxe4 {[%clk 0:01:47]}  dxe4 {[%clk 0:02:32]} 20. Bc4 {[%clk 0:01:41]}  Rxf1+ {[%clk 0:02:26]} 21. Kxf1 {[%clk 0:01:42]}  Re8 {[%clk 0:02:09]} 22. Rd7 {[%clk 0:01:34]}  Bd5 {[%clk 0:02:09]} 23. Bb5 {[%clk 0:01:02]}  Rf8+ {[%clk 0:02:03]} 24. Ke2 {[%clk 0:01:00]}  c4 {[%clk 0:01:49]} 25. Rxa7 {[%clk 0:00:38]}  Rf5 {[%clk 0:01:45]} 26. Rc7 {[%clk 0:00:29]}  Rxe5 {[%clk 0:01:43]} 27. Bxc4 {[%clk 0:00:29]}  Rg5 {[%clk 0:01:34]} 28. g4 {[%clk 0:00:20]}  h5 {[%clk 0:01:33]} 29. gxh5 {[%clk 0:00:21]}  Rxh5 {[%clk 0:01:33]} 30. a4 {[%clk 0:00:04]}  Rxh3 {[%clk 0:01:29]} 31. b3 {[%clk 0:00:01]}  Rxc3 {[%clk 0:01:25]} 32. Kd2 {[%clk 0:00:02]}  Rg3 {[%clk 0:01:20]} 33. Rc8+ {[%clk 0:00:03]}  Kf7 {[%clk 0:01:19]} 34. Rb8 {[%clk 0:00:03]}  Bxc4 {[%clk 0:01:16]} 35. bxc4 {[%clk 0:00:04]}  Ra3 {[%clk 0:01:11]} 36. Rxb6 {[%clk 0:00:04]}  Rxa4 {[%clk 0:01:11]} 37. c5 {[%clk 0:00:05]}  Rc4 {[%clk 0:01:11]} 38. c6 {[%clk 0:00:06]}  Kf6 {[%clk 0:01:12]} 39. Ke3 {[%clk 0:00:03]}  g5 {[%clk 0:01:11]} 0-1


[Site "https://www.chess.com"]